[Event "Titled Tuesday Blitz March 01 Early 2022"]
[White "Piesik, Piotr"]
[Black "Karavaeva, Olga"]
[WhiteFideId "1136194"]
[BlackFideId "4124111"]
[WhiteElo "2232"]
[BlackElo "2105"]
[Result "1-0"]
[Round "03"]
[TimeControl "180+1"]
[Date "2022.03.01"]
[WhiteClock "0:01:26"]
[BlackClock "0:00:06"]

1. Nf3 {[%clk 0:03:00]}  d5 {[%clk 0:02:57]} 2. g3 {[%clk 0:03:00]}  c6 {[%clk 0:02:57]} 3. Bg2 {[%clk 0:03:01]}  g6 {[%clk 0:02:56]} 4. O-O {[%clk 0:03:01]}  Bg7 {[%clk 0:02:57]} 5. d3 {[%clk 0:03:02]}  Nf6 {[%clk 0:02:57]} 6. Nbd2 {[%clk 0:03:02]}  Nbd7 {[%clk 0:02:56]} 7. e4 {[%clk 0:03:02]}  O-O {[%clk 0:02:56]} 8. Qe2 {[%clk 0:03:02]}  e6 {[%clk 0:02:56]} 9. Re1 {[%clk 0:03:01]}  Re8 {[%clk 0:02:56]} 10. Nb3 {[%clk 0:03:01]}  dxe4 {[%clk 0:02:54]} 11. dxe4 {[%clk 0:03:01]}  e5 {[%clk 0:02:54]} 12. a4 {[%clk 0:03:00]}  Nf8 {[%clk 0:02:50]} 13. Nfd2 {[%clk 0:02:53]}  Be6 {[%clk 0:02:43]} 14. Nc4 {[%clk 0:02:52]}  Qc7 {[%clk 0:02:41]} 15. Be3 {[%clk 0:02:49]}  b6 {[%clk 0:02:27]} 16. f3 {[%clk 0:02:37]}  h6 {[%clk 0:02:24]} 17. Bf1 {[%clk 0:02:37]}  Rad8 {[%clk 0:02:21]} 18. Qf2 {[%clk 0:02:34]}  Rd7 {[%clk 0:02:16]} 19. a5 {[%clk 0:02:34]}  b5 {[%clk 0:02:16]} 20. Ncd2 {[%clk 0:02:34]}  a6 {[%clk 0:02:12]} 21. Nc5 {[%clk 0:02:33]}  Qc8 {[%clk 0:01:54]} 22. Nxd7 {[%clk 0:02:33]}  N8xd7 {[%clk 0:01:51]} 23. Nb3 {[%clk 0:02:31]}  Bxb3 {[%clk 0:01:38]} 24. cxb3 {[%clk 0:02:32]}  Nf8 {[%clk 0:01:31]} 25. Rac1 {[%clk 0:02:29]}  Ne6 {[%clk 0:01:29]} 26. Red1 {[%clk 0:02:28]}  Nd7 {[%clk 0:01:20]} 27. Bh3 {[%clk 0:02:26]}  Qc7 {[%clk 0:01:00]} 28. Qc2 {[%clk 0:02:17]}  c5 {[%clk 0:00:41]} 29. Rd5 {[%clk 0:02:10]}  Re7 {[%clk 0:00:20]} 30. Bxe6 {[%clk 0:02:02]}  fxe6 {[%clk 0:00:19]} 31. Rd3 {[%clk 0:01:57]}  Qxa5 {[%clk 0:00:19]} 32. Bxc5 {[%clk 0:01:50]}  Nxc5 {[%clk 0:00:19]} 33. Qxc5 {[%clk 0:01:51]}  Rf7 {[%clk 0:00:20]} 34. Qc8+ {[%clk 0:01:44]}  Kh7 {[%clk 0:00:19]} 35. Qxe6 {[%clk 0:01:44]}  Rf6 {[%clk 0:00:20]} 36. Qe7 {[%clk 0:01:39]}  Qb6+ {[%clk 0:00:12]} 37. Kg2 {[%clk 0:01:39]}  Re6 {[%clk 0:00:08]} 38. Qc7 {[%clk 0:01:35]}  Qxc7 {[%clk 0:00:06]} 39. Rxc7 {[%clk 0:01:35]}  g5 {[%clk 0:00:06]} 40. Rdd7 {[%clk 0:01:34]}  Rg6 {[%clk 0:00:06]} 41. Kh3 {[%clk 0:01:26]} 1-0


[Site "https://www.chess.com"]

[Event "Titled Tuesday Blitz March 01 Early 2022"]
[White "Pinheiro, Iung Alicio de O."]
[Black "Lazavik, Denis"]
[WhiteFideId "2104350"]
[BlackFideId "13515110"]
[WhiteElo "2518"]
[BlackElo "2436"]
[Result "1/2-1/2"]
[Round "03"]
[TimeControl "180+1"]
[Date "2022.03.01"]
[WhiteClock "0:00:14"]
[BlackClock "0:00:09"]

1. e4 {[%clk 0:03:00]}  c5 {[%clk 0:02:59]} 2. Nf3 {[%clk 0:03:00]}  e6 {[%clk 0:03:00]} 3. c3 {[%clk 0:02:59]}  Nf6 {[%clk 0:02:57]} 4. e5 {[%clk 0:02:57]}  Nd5 {[%clk 0:02:57]} 5. g3 {[%clk 0:02:58]}  d6 {[%clk 0:02:50]} 6. Bg2 {[%clk 0:02:55]}  Nc6 {[%clk 0:02:48]} 7. exd6 {[%clk 0:02:55]}  Bxd6 {[%clk 0:02:49]} 8. O-O {[%clk 0:02:56]}  O-O {[%clk 0:02:48]} 9. d4 {[%clk 0:02:57]}  Qc7 {[%clk 0:02:48]} 10. c4 {[%clk 0:02:52]}  Nde7 {[%clk 0:02:05]} 11. Nc3 {[%clk 0:02:49]}  Nxd4 {[%clk 0:01:49]} 12. Nxd4 {[%clk 0:02:45]}  cxd4 {[%clk 0:01:50]} 13. Nb5 {[%clk 0:02:34]}  Qb6 {[%clk 0:01:49]} 14. Qxd4 {[%clk 0:02:07]}  Bc5 {[%clk 0:01:47]} 15. Qe4 {[%clk 0:01:47]}  Nf5 {[%clk 0:01:43]} 16. b3 {[%clk 0:01:39]}  a6 {[%clk 0:01:22]} 17. Nc3 {[%clk 0:01:37]}  Qc7 {[%clk 0:00:52]} 18. Bb2 {[%clk 0:01:30]}  Rb8 {[%clk 0:00:50]} 19. Rac1 {[%clk 0:01:29]}  b6 {[%clk 0:00:49]} 20. Qg4 {[%clk 0:01:20]}  Bb7 {[%clk 0:00:44]} 21. Ne4 {[%clk 0:01:17]}  Be7 {[%clk 0:00:41]} 22. Rfd1 {[%clk 0:01:09]}  Kh8 {[%clk 0:00:38]} 23. h4 {[%clk 0:01:00]}  f6 {[%clk 0:00:35]} 24. h5 {[%clk 0:00:58]}  Rbe8 {[%clk 0:00:33]} 25. Qe2 {[%clk 0:00:55]}  Rd8 {[%clk 0:00:24]} 26. Bc3 {[%clk 0:00:36]}  e5 {[%clk 0:00:23]} 27. Qb2 {[%clk 0:00:31]}  Nh6 {[%clk 0:00:20]} 28. Qe2 {[%clk 0:00:20]}  Bc6 {[%clk 0:00:18]} 29. Nd2 {[%clk 0:00:19]}  Bxg2 {[%clk 0:00:18]} 30. Kxg2 {[%clk 0:00:20]}  Nf7 {[%clk 0:00:15]} 31. Nf3 {[%clk 0:00:18]}  Qc6 {[%clk 0:00:15]} 32. Rxd8 {[%clk 0:00:17]}  Rxd8 {[%clk 0:00:16]} 33. Rd1 {[%clk 0:00:18]}  Rxd1 {[%clk 0:00:13]} 34. Qxd1 {[%clk 0:00:19]}  Ng5 {[%clk 0:00:11]} 35. Qd5 {[%clk 0:00:19]}  Qxd5 {[%clk 0:00:11]} 36. cxd5 {[%clk 0:00:20]}  Ne4 {[%clk 0:00:11]} 37. Bb2 {[%clk 0:00:14]}  Kg8 {[%clk 0:00:11]} 38. g4 {[%clk 0:00:14]}  Kf7 {[%clk 0:00:11]} 39. Kf1 {[%clk 0:00:15]}  Bb4 {[%clk 0:00:11]} 40. Ke2 {[%clk 0:00:15]}  Bc3 {[%clk 0:00:11]} 41. Bc1 {[%clk 0:00:14]}  Nd6 {[%clk 0:00:07]} 42. Be3 {[%clk 0:00:14]}  b5 {[%clk 0:00:06]} 43. Bc5 {[%clk 0:00:10]}  Ne4 {[%clk 0:00:06]} 44. Be3 {[%clk 0:00:10]}  Bb4 {[%clk 0:00:06]} 45. Ng1 {[%clk 0:00:08]}  Nc3+ {[%clk 0:00:06]} 46. Kd3 {[%clk 0:00:08]}  Nxd5 {[%clk 0:00:07]} 47. Ne2 {[%clk 0:00:07]}  Ke6 {[%clk 0:00:08]} 48. a4 {[%clk 0:00:06]}  g6 {[%clk 0:00:07]} 49. axb5 {[%clk 0:00:06]}  axb5 {[%clk 0:00:07]} 50. hxg6 {[%clk 0:00:06]}  hxg6 {[%clk 0:00:08]} 51. f3 {[%clk 0:00:05]}  Be7 {[%clk 0:00:08]} 52. Bd2 {[%clk 0:00:04]}  Bc5 {[%clk 0:00:07]} 53. Ng3 {[%clk 0:00:03]}  Ne7 {[%clk 0:00:05]} 54. Ne4 {[%clk 0:00:04]}  Bb6 {[%clk 0:00:06]} 55. Nc3 {[%clk 0:00:04]}  b4 {[%clk 0:00:04]} 56. Na2 {[%clk 0:00:04]}  Nd5 {[%clk 0:00:03]} 57. Nxb4 {[%clk 0:00:05]}  Nc7 {[%clk 0:00:03]} 58. Nc2 {[%clk 0:00:05]}  Nb5 {[%clk 0:00:03]} 59. Be3 {[%clk 0:00:05]}  Bd8 {[%clk 0:00:04]} 60. Bd2 {[%clk 0:00:05]}  Nd6 {[%clk 0:00:04]} 61. Be3 {[%clk 0:00:05]}  Nb7 {[%clk 0:00:04]} 62. b4 {[%clk 0:00:05]}  Be7 {[%clk 0:00:04]} 63. Kc4 {[%clk 0:00:05]}  Nd6+ {[%clk 0:00:04]} 64. Kd3 {[%clk 0:00:06]}  Kd5 {[%clk 0:00:05]} 65. Bc5 {[%clk 0:00:05]}  Nc8 {[%clk 0:00:04]} 66. Ne3+ {[%clk 0:00:06]}  Kc6 {[%clk 0:00:05]} 67. Kc4 {[%clk 0:00:06]}  Nd6+ {[%clk 0:00:03]} 68. Bxd6 {[%clk 0:00:06]}  Bxd6 {[%clk 0:00:04]} 69. b5+ {[%clk 0:00:07]}  Kd7 {[%clk 0:00:04]} 70. Kd5 {[%clk 0:00:05]}  Bb8 {[%clk 0:00:05]} 71. Nc4 {[%clk 0:00:05]}  Kc7 {[%clk 0:00:04]} 72. g5 {[%clk 0:00:05]}  fxg5 {[%clk 0:00:04]} 73. Nxe5 {[%clk 0:00:05]}  Kb7 {[%clk 0:00:03]} 74. Nxg6 {[%clk 0:00:05]}  Kb6 {[%clk 0:00:04]} 75. Kc4 {[%clk 0:00:06]}  Bd6 {[%clk 0:00:04]} 76. Nh8 {[%clk 0:00:04]}  Kb7 {[%clk 0:00:05]} 77. Nf7 {[%clk 0:00:05]}  Bf4 {[%clk 0:00:05]} 78. Nd8+ {[%clk 0:00:03]}  Kb6 {[%clk 0:00:05]} 79. Ne6 {[%clk 0:00:04]}  Be3 {[%clk 0:00:05]} 80. Ng7 {[%clk 0:00:03]}  Bd2 {[%clk 0:00:04]} 81. Nf5 {[%clk 0:00:04]}  Bf4 {[%clk 0:00:05]} 82. Nd4 {[%clk 0:00:05]}  Be3 {[%clk 0:00:05]} 83. Nf5 {[%clk 0:00:04]}  Bf4 {[%clk 0:00:05]} 84. Ne7 {[%clk 0:00:04]}  Kb7 {[%clk 0:00:05]} 85. Nd5 {[%clk 0:00:05]}  Bd2 {[%clk 0:00:06]} 86. Kd3 {[%clk 0:00:06]}  Bc1 {[%clk 0:00:06]} 87. Ke4 {[%clk 0:00:06]}  Bd2 {[%clk 0:00:07]} 88. Kf5 {[%clk 0:00:07]}  Bc1 {[%clk 0:00:07]} 89. Ke6 {[%clk 0:00:06]}  Bd2 {[%clk 0:00:07]} 90. Kf5 {[%clk 0:00:06]}  Bc1 {[%clk 0:00:07]} 91. Ke4 {[%clk 0:00:07]}  Bd2 {[%clk 0:00:08]} 92. Kd3 {[%clk 0:00:07]}  Bc1 {[%clk 0:00:08]} 93. Kc2 {[%clk 0:00:07]}  Ba3 {[%clk 0:00:08]} 94. Kc3 {[%clk 0:00:05]}  Bc1 {[%clk 0:00:08]} 95. Kc4 {[%clk 0:00:06]}  Bd2 {[%clk 0:00:09]} 96. Nc3 {[%clk 0:00:06]}  Bc1 {[%clk 0:00:07]} 97. Ne4 {[%clk 0:00:07]}  Be3 {[%clk 0:00:07]} 98. Kd5 {[%clk 0:00:07]}  Kb6 {[%clk 0:00:07]} 99. Kc4 {[%clk 0:00:07]}  Kb7 {[%clk 0:00:06]} 100. Kd3 {[%clk 0:00:06]}  Bf4 {[%clk 0:00:06]} 101. Nc3 {[%clk 0:00:05]}  Bc1 {[%clk 0:00:06]} 102. Ke4 {[%clk 0:00:04]}  Bd2 {[%clk 0:00:06]} 103. Nd5 {[%clk 0:00:04]}  Bc1 {[%clk 0:00:06]} 104. Kf5 {[%clk 0:00:04]}  Bd2 {[%clk 0:00:06]} 105. Nf6 {[%clk 0:00:04]}  Kb6 {[%clk 0:00:05]} 106. Ne4 {[%clk 0:00:05]}  Bc1 {[%clk 0:00:05]} 107. Nxg5 {[%clk 0:00:05]}  Kxb5 {[%clk 0:00:06]} 108. Ne6 {[%clk 0:00:05]}  Kc6 {[%clk 0:00:05]} 109. Ke5 {[%clk 0:00:06]}  Kd7 {[%clk 0:00:05]} 110. Nc5+ {[%clk 0:00:04]}  Ke7 {[%clk 0:00:05]} 111. Kf5 {[%clk 0:00:03]}  Kf7 {[%clk 0:00:05]} 112. Ne4 {[%clk 0:00:04]}  Be3 {[%clk 0:00:05]} 113. Ng3 {[%clk 0:00:04]}  Bc1 {[%clk 0:00:06]} 114. Ne2 {[%clk 0:00:05]}  Be3 {[%clk 0:00:06]} 115. Nc3 {[%clk 0:00:05]}  Bd2 {[%clk 0:00:06]} 116. Nd5 {[%clk 0:00:06]}  Bc1 {[%clk 0:00:06]} 117. Nf4 {[%clk 0:00:06]}  Be3 {[%clk 0:00:05]} 118. Nd3 {[%clk 0:00:07]}  Bd2 {[%clk 0:00:05]} 119. Ne5+ {[%clk 0:00:08]}  Kf8 {[%clk 0:00:05]} 120. Ke4 {[%clk 0:00:07]}  Bc1 {[%clk 0:00:05]} 121. Nc4 {[%clk 0:00:08]}  Bh6 {[%clk 0:00:05]} 122. Kd3 {[%clk 0:00:08]}  Bc1 {[%clk 0:00:06]} 123. Ke2 {[%clk 0:00:08]}  Bh6 {[%clk 0:00:07]} 124. Kd3 {[%clk 0:00:08]}  Bc1 {[%clk 0:00:07]} 125. Ke4 {[%clk 0:00:09]}  Bh6 {[%clk 0:00:07]} 126. Nb6 {[%clk 0:00:10]}  Bc1 {[%clk 0:00:08]} 127. Nd5 {[%clk 0:00:11]}  Bh6 {[%clk 0:00:07]} 128. Nf4 {[%clk 0:00:11]}  Kf7 {[%clk 0:00:07]} 129. Ne2 {[%clk 0:00:10]}  Bd2 {[%clk 0:00:06]} 130. Ng3 {[%clk 0:00:10]}  Bc1 {[%clk 0:00:06]} 131. Nf5 {[%clk 0:00:11]}  Bd2 {[%clk 0:00:06]} 132. Ke5 {[%clk 0:00:12]}  Bc3+ {[%clk 0:00:06]} 133. Kf4 {[%clk 0:00:12]}  Bd2+ {[%clk 0:00:07]} 134. Kg4 {[%clk 0:00:13]}  Bc1 {[%clk 0:00:08]} 135. Ng3 {[%clk 0:00:14]}  Bd2 {[%clk 0:00:08]} 136. Ne4 {[%clk 0:00:15]}  Bc1 {[%clk 0:00:08]} 137. Kf5 {[%clk 0:00:14]}  Be3 {[%clk 0:00:08]} 138. Nd6+ {[%clk 0:00:13]}  Kf8 {[%clk 0:00:08]} 139. Nc4 {[%clk 0:00:14]}  Bc1 {[%clk 0:00:09]} 140. Ke4 {[%clk 0:00:14]} 1/2-1/2


[Site "https://www.chess.com"]

[Event "Titled Tuesday Blitz March 01 Early 2022"]
[White "Politov, Pavel Y."]
[Black "Aydin, Gulenay"]
[WhiteFideId "24110515"]
[BlackFideId "34557431"]
[WhiteElo "2090"]
[BlackElo "1429"]
[Result "0-1"]
[Round "03"]
[TimeControl "180+1"]
[Date "2022.03.01"]
[WhiteClock "0:00:08"]
[BlackClock "0:00:19"]

1. e4 {[%clk 0:03:00]}  c5 {[%clk 0:02:59]} 2. Nf3 {[%clk 0:03:01]}  d6 {[%clk 0:03:00]} 3. d4 {[%clk 0:03:01]}  cxd4 {[%clk 0:03:01]} 4. Nxd4 {[%clk 0:03:02]}  g6 {[%clk 0:03:01]} 5. c4 {[%clk 0:02:59]}  Bg7 {[%clk 0:03:01]} 6. Nc3 {[%clk 0:02:58]}  Nf6 {[%clk 0:03:01]} 7. Be2 {[%clk 0:02:53]}  O-O {[%clk 0:03:02]} 8. O-O {[%clk 0:02:52]}  Nc6 {[%clk 0:03:01]} 9. Be3 {[%clk 0:02:52]}  Bd7 {[%clk 0:02:56]} 10. Qd2 {[%clk 0:02:46]}  a6 {[%clk 0:02:54]} 11. f3 {[%clk 0:02:38]}  Qa5 {[%clk 0:02:52]} 12. Rfd1 {[%clk 0:02:21]}  Rfc8 {[%clk 0:02:50]} 13. Rac1 {[%clk 0:02:16]}  Rab8 {[%clk 0:02:49]} 14. b3 {[%clk 0:02:03]}  Nxd4 {[%clk 0:02:38]} 15. Bxd4 {[%clk 0:02:02]}  b5 {[%clk 0:02:38]} 16. cxb5 {[%clk 0:01:51]}  axb5 {[%clk 0:02:34]} 17. Nxb5 {[%clk 0:01:30]}  Qxd2 {[%clk 0:02:10]} 18. Rxc8+ {[%clk 0:01:28]}  Rxc8 {[%clk 0:02:10]} 19. Rxd2 {[%clk 0:01:28]}  Bh6 {[%clk 0:02:01]} 20. Rb2 {[%clk 0:01:19]}  Ne8 {[%clk 0:01:50]} 21. a4 {[%clk 0:01:10]}  e5 {[%clk 0:01:38]} 22. Bb6 {[%clk 0:00:52]}  Rc6 {[%clk 0:01:20]} 23. Ba7 {[%clk 0:00:45]}  Nc7 {[%clk 0:01:19]} 24. Nxc7 {[%clk 0:00:43]}  Rxc7 {[%clk 0:01:20]} 25. Bb6 {[%clk 0:00:42]}  Rc6 {[%clk 0:01:17]} 26. a5 {[%clk 0:00:42]}  Bc8 {[%clk 0:01:14]} 27. Bb5 {[%clk 0:00:39]}  Rc1+ {[%clk 0:01:04]} 28. Kf2 {[%clk 0:00:39]}  Ra1 {[%clk 0:01:04]} 29. b4 {[%clk 0:00:37]}  Bb7 {[%clk 0:00:56]} 30. Be3 {[%clk 0:00:33]}  Bf8 {[%clk 0:00:53]} 31. Be2 {[%clk 0:00:28]}  Kg7 {[%clk 0:00:46]} 32. Bb6 {[%clk 0:00:27]}  d5 {[%clk 0:00:40]} 33. exd5 {[%clk 0:00:27]}  Bxd5 {[%clk 0:00:41]} 34. b5 {[%clk 0:00:27]}  Ra3 {[%clk 0:00:34]} 35. a6 {[%clk 0:00:26]}  Bd6 {[%clk 0:00:33]} 36. Be3 {[%clk 0:00:24]}  f5 {[%clk 0:00:30]} 37. f4 {[%clk 0:00:18]}  exf4 {[%clk 0:00:29]} 38. Bd4+ {[%clk 0:00:18]}  Kf7 {[%clk 0:00:29]} 39. b6 {[%clk 0:00:18]}  Ra4 {[%clk 0:00:29]} 40. Bc3 {[%clk 0:00:10]}  Bc5+ {[%clk 0:00:29]} 41. Ke1 {[%clk 0:00:10]}  Ra1+ {[%clk 0:00:22]} 42. Kd2 {[%clk 0:00:10]}  Be4 {[%clk 0:00:19]} 43. b7 {[%clk 0:00:08]}  Be3# {[%clk 0:00:19]} 0-1


[Site "https://www.chess.com"]

[Event "Titled Tuesday Blitz March 01 Early 2022"]
[White "Potapova, Margarita"]
[Black "Reprintsev, Alexander"]
[WhiteFideId "14126869"]
[BlackFideId "14100541"]
[WhiteElo "2209"]
[BlackElo "2126"]
[Result "0-1"]
[Round "03"]
[TimeControl "180+1"]
[Date "2022.03.01"]
[WhiteClock "0:00:03"]
[BlackClock "0:01:12"]

1. e4 {[%clk 0:02:59]}  d5 {[%clk 0:02:59]} 2. exd5 {[%clk 0:02:58]}  Qxd5 {[%clk 0:02:59]} 3. Nc3 {[%clk 0:02:58]}  Qa5 {[%clk 0:02:58]} 4. d4 {[%clk 0:02:58]}  Nf6 {[%clk 0:02:58]} 5. Nf3 {[%clk 0:02:58]}  Nc6 {[%clk 0:02:58]} 6. Bd2 {[%clk 0:02:50]}  a6 {[%clk 0:02:57]} 7. Bc4 {[%clk 0:02:28]}  Qh5 {[%clk 0:02:57]} 8. h3 {[%clk 0:02:22]}  Bg4 {[%clk 0:02:55]} 9. Be2 {[%clk 0:02:17]}  O-O-O {[%clk 0:02:53]} 10. O-O {[%clk 0:02:17]}  Bxf3 {[%clk 0:02:51]} 11. Bxf3 {[%clk 0:02:16]}  Qf5 {[%clk 0:02:52]} 12. d5 {[%clk 0:02:15]}  Nd4 {[%clk 0:02:44]} 13. Bg4 {[%clk 0:01:37]}  Nxg4 {[%clk 0:02:43]} 14. hxg4 {[%clk 0:01:38]}  Qxc2 {[%clk 0:02:40]} 15. Rc1 {[%clk 0:01:31]}  Qxd1 {[%clk 0:02:40]} 16. Rfxd1 {[%clk 0:01:32]}  e5 {[%clk 0:02:34]} 17. dxe6 {[%clk 0:01:22]}  Nxe6 {[%clk 0:02:34]} 18. Be3 {[%clk 0:01:19]}  Bb4 {[%clk 0:02:32]} 19. Nd5 {[%clk 0:01:18]}  Bd6 {[%clk 0:02:31]} 20. Ba7 {[%clk 0:01:12]}  b5 {[%clk 0:02:07]} 21. g3 {[%clk 0:01:04]}  Kb7 {[%clk 0:02:07]} 22. Be3 {[%clk 0:01:04]}  h5 {[%clk 0:01:57]} 23. gxh5 {[%clk 0:01:03]}  Rxh5 {[%clk 0:01:56]} 24. Kg2 {[%clk 0:01:03]}  Rdh8 {[%clk 0:01:55]} 25. b3 {[%clk 0:00:48]}  f5 {[%clk 0:01:48]} 26. Kf3 {[%clk 0:00:40]}  g5 {[%clk 0:01:46]} 27. Bd4 {[%clk 0:00:24]}  g4+ {[%clk 0:01:45]} 28. Ke2 {[%clk 0:00:23]}  Re8 {[%clk 0:01:43]} 29. Be3 {[%clk 0:00:15]}  f4 {[%clk 0:01:42]} 30. gxf4 {[%clk 0:00:15]}  Nxf4+ {[%clk 0:01:41]} 31. Nxf4 {[%clk 0:00:10]}  Bxf4 {[%clk 0:01:42]} 32. Rd7 {[%clk 0:00:10]}  g3 {[%clk 0:01:34]} 33. Rf7 {[%clk 0:00:08]}  Be5 {[%clk 0:01:25]} 34. fxg3 {[%clk 0:00:04]}  Bxg3 {[%clk 0:01:26]} 35. Kd3 {[%clk 0:00:04]}  Rh3 {[%clk 0:01:25]} 36. Ke2 {[%clk 0:00:04]}  Bd6 {[%clk 0:01:23]} 37. Rf3 {[%clk 0:00:04]}  Rh2+ {[%clk 0:01:15]} 38. Rf2 {[%clk 0:00:04]}  Rh7 {[%clk 0:01:12]} 39. Rcf1 {[%clk 0:00:04]}  Rhe7 {[%clk 0:01:12]} 40. Rf3 {[%clk 0:00:03]}  Bc5 {[%clk 0:01:12]} 0-1


[Site "https://www.chess.com"]

[Event "Titled Tuesday Blitz March 01 Early 2022"]
[White "Quirke, Jeffrey"]
[Black "Gubanov, Oleg"]
[WhiteFideId "2013029"]
[BlackFideId "14115115"]
[WhiteElo "2148"]
[BlackElo "2080"]
[Result "1/2-1/2"]
[Round "03"]
[TimeControl "180+1"]
[Date "2022.03.01"]
[WhiteClock "0:00:12"]
[BlackClock "0:00:29"]

1. c4 {[%clk 0:03:00]}  e5 {[%clk 0:02:53]} 2. g3 {[%clk 0:03:00]}  Nf6 {[%clk 0:02:52]} 3. Bg2 {[%clk 0:03:00]}  Nc6 {[%clk 0:02:52]} 4. e3 {[%clk 0:02:53]}  d5 {[%clk 0:02:43]} 5. cxd5 {[%clk 0:02:52]}  Nxd5 {[%clk 0:02:43]} 6. Ne2 {[%clk 0:02:52]}  Be6 {[%clk 0:02:41]} 7. O-O {[%clk 0:02:48]}  Qd7 {[%clk 0:02:41]} 8. d4 {[%clk 0:02:44]}  exd4 {[%clk 0:02:03]} 9. Nxd4 {[%clk 0:02:43]}  Nxd4 {[%clk 0:02:03]} 10. Qxd4 {[%clk 0:02:43]}  c5 {[%clk 0:02:03]} 11. Qd1 {[%clk 0:02:21]}  Be7 {[%clk 0:02:00]} 12. e4 {[%clk 0:02:06]}  Nb4 {[%clk 0:01:59]} 13. Qxd7+ {[%clk 0:02:05]}  Bxd7 {[%clk 0:01:59]} 14. Nc3 {[%clk 0:02:06]}  Bf6 {[%clk 0:01:33]} 15. Rd1 {[%clk 0:02:02]}  Bd4 {[%clk 0:01:10]} 16. a3 {[%clk 0:01:59]}  Nc6 {[%clk 0:00:55]} 17. Ne2 {[%clk 0:01:52]}  Bf6 {[%clk 0:00:52]} 18. Rb1 {[%clk 0:01:44]}  Nd4 {[%clk 0:00:52]} 19. Nxd4 {[%clk 0:01:38]}  Bxd4 {[%clk 0:00:47]} 20. b4 {[%clk 0:01:26]}  Ba4 {[%clk 0:00:47]} 21. Rd2 {[%clk 0:01:05]}  Bc3 {[%clk 0:00:45]} 22. Re2 {[%clk 0:00:57]}  cxb4 {[%clk 0:00:36]} 23. axb4 {[%clk 0:00:57]}  Rd8 {[%clk 0:00:32]} 24. Bf4 {[%clk 0:00:56]}  O-O {[%clk 0:00:27]} 25. e5 {[%clk 0:00:49]}  Bb5 {[%clk 0:00:25]} 26. Rc2 {[%clk 0:00:46]}  Bd3 {[%clk 0:00:25]} 27. Rxc3 {[%clk 0:00:42]}  Bxb1 {[%clk 0:00:25]} 28. Bxb7 {[%clk 0:00:37]}  Rd7 {[%clk 0:00:24]} 29. Bc6 {[%clk 0:00:35]}  Rd1+ {[%clk 0:00:24]} 30. Kg2 {[%clk 0:00:34]}  Rc8 {[%clk 0:00:24]} 31. b5 {[%clk 0:00:33]}  a6 {[%clk 0:00:23]} 32. Re3 {[%clk 0:00:24]}  axb5 {[%clk 0:00:22]} 33. Bxb5 {[%clk 0:00:25]}  h6 {[%clk 0:00:20]} 34. e6 {[%clk 0:00:25]}  fxe6 {[%clk 0:00:20]} 35. Rxe6 {[%clk 0:00:24]}  Bd3 {[%clk 0:00:20]} 36. Bxd3 {[%clk 0:00:22]}  Rxd3 {[%clk 0:00:21]} 37. h4 {[%clk 0:00:21]}  Rc2 {[%clk 0:00:20]} 38. Be3 {[%clk 0:00:20]}  Rb3 {[%clk 0:00:19]} 39. Re4 {[%clk 0:00:20]}  Kf7 {[%clk 0:00:19]} 40. Kf3 {[%clk 0:00:20]}  Rbb2 {[%clk 0:00:18]} 41. Rf4+ {[%clk 0:00:20]}  Kg6 {[%clk 0:00:19]} 42. Rg4+ {[%clk 0:00:19]}  Kh7 {[%clk 0:00:19]} 43. Rf4 {[%clk 0:00:19]}  Rc7 {[%clk 0:00:19]} 44. Rf5 {[%clk 0:00:18]}  Kg8 {[%clk 0:00:19]} 45. Rf4 {[%clk 0:00:18]}  Rf7 {[%clk 0:00:19]} 46. Rxf7 {[%clk 0:00:18]}  Kxf7 {[%clk 0:00:20]} 47. g4 {[%clk 0:00:15]}  Ra2 {[%clk 0:00:21]} 48. h5 {[%clk 0:00:15]}  Kf6 {[%clk 0:00:21]} 49. Kg3 {[%clk 0:00:15]}  Ke6 {[%clk 0:00:21]} 50. Kf3 {[%clk 0:00:15]}  Ke5 {[%clk 0:00:21]} 51. Kg3 {[%clk 0:00:12]}  Ra3 {[%clk 0:00:22]} 52. Kf3 {[%clk 0:00:12]}  Rb3 {[%clk 0:00:22]} 53. Kg3 {[%clk 0:00:13]}  Ke4 {[%clk 0:00:23]} 54. Kg2 {[%clk 0:00:13]}  Rd3 {[%clk 0:00:22]} 55. Kg3 {[%clk 0:00:13]}  Rxe3+ {[%clk 0:00:22]} 56. fxe3 {[%clk 0:00:13]}  Kxe3 {[%clk 0:00:23]} 57. g5 {[%clk 0:00:12]}  Ke4 {[%clk 0:00:21]} 58. Kg4 {[%clk 0:00:10]}  Ke5 {[%clk 0:00:20]} 59. gxh6 {[%clk 0:00:09]}  gxh6 {[%clk 0:00:20]} 60. Kg3 {[%clk 0:00:09]}  Kf5 {[%clk 0:00:21]} 61. Kh4 {[%clk 0:00:09]}  Kf4 {[%clk 0:00:21]} 62. Kh3 {[%clk 0:00:09]}  Kg5 {[%clk 0:00:22]} 63. Kh2 {[%clk 0:00:10]}  Kxh5 {[%clk 0:00:23]} 64. Kg2 {[%clk 0:00:10]}  Kg4 {[%clk 0:00:24]} 65. Kh2 {[%clk 0:00:10]}  h5 {[%clk 0:00:25]} 66. Kg2 {[%clk 0:00:11]}  h4 {[%clk 0:00:26]} 67. Kh2 {[%clk 0:00:11]}  h3 {[%clk 0:00:27]} 68. Kh1 {[%clk 0:00:11]}  Kg3 {[%clk 0:00:27]} 69. Kg1 {[%clk 0:00:11]}  h2+ {[%clk 0:00:28]} 70. Kh1 {[%clk 0:00:12]}  Kh3 {[%clk 0:00:29]} 1/2-1/2


[Site "https://www.chess.com"]

[Event "Titled Tuesday Blitz March 01 Early 2022"]
[White "Rangel, Daniel"]
[Black "Paravyan, David"]
[WhiteFideId "2124475"]
[BlackFideId "4194985"]
[WhiteElo "2187"]
[BlackElo "2569"]
[Result "0-1"]
[Round "03"]
[TimeControl "180+1"]
[Date "2022.03.01"]
[WhiteClock "0:00:10"]
[BlackClock "0:00:32"]

1. c4 {[%clk 0:03:00]}  Nf6 {[%clk 0:02:58]} 2. g3 {[%clk 0:03:01]}  c5 {[%clk 0:02:56]} 3. Bg2 {[%clk 0:03:01]}  d5 {[%clk 0:02:56]} 4. cxd5 {[%clk 0:03:00]}  Nxd5 {[%clk 0:02:57]} 5. Nf3 {[%clk 0:03:01]}  Nc6 {[%clk 0:02:55]} 6. d4 {[%clk 0:02:58]}  cxd4 {[%clk 0:02:56]} 7. Nxd4 {[%clk 0:02:58]}  Ndb4 {[%clk 0:02:57]} 8. Nxc6 {[%clk 0:02:51]}  Qxd1+ {[%clk 0:02:56]} 9. Kxd1 {[%clk 0:02:52]}  Nxc6 {[%clk 0:02:57]} 10. Bxc6+ {[%clk 0:02:49]}  bxc6 {[%clk 0:02:56]} 11. Nc3 {[%clk 0:02:48]}  Bf5 {[%clk 0:02:56]} 12. f3 {[%clk 0:02:36]}  e5 {[%clk 0:02:55]} 13. e4 {[%clk 0:02:36]}  Be6 {[%clk 0:02:50]} 14. Be3 {[%clk 0:02:33]}  Bb4 {[%clk 0:02:34]} 15. Kc2 {[%clk 0:02:33]}  f5 {[%clk 0:02:32]} 16. a3 {[%clk 0:02:27]}  Bxc3 {[%clk 0:02:17]} 17. Kxc3 {[%clk 0:02:28]}  O-O {[%clk 0:02:16]} 18. exf5 {[%clk 0:02:03]}  Rxf5 {[%clk 0:02:15]} 19. f4 {[%clk 0:02:03]}  exf4 {[%clk 0:02:15]} 20. gxf4 {[%clk 0:02:02]}  Bd5 {[%clk 0:02:12]} 21. Rhg1 {[%clk 0:01:50]}  Rh5 {[%clk 0:02:11]} 22. Bd4 {[%clk 0:01:38]}  g6 {[%clk 0:02:06]} 23. Rg3 {[%clk 0:01:33]}  Re8 {[%clk 0:02:05]} 24. h3 {[%clk 0:01:26]}  a5 {[%clk 0:02:02]} 25. b4 {[%clk 0:01:22]}  a4 {[%clk 0:02:00]} 26. Be5 {[%clk 0:01:12]}  Kf7 {[%clk 0:02:00]} 27. Re1 {[%clk 0:01:10]}  Rh4 {[%clk 0:01:53]} 28. Ree3 {[%clk 0:01:09]}  Be6 {[%clk 0:01:45]} 29. Kd4 {[%clk 0:01:00]}  Bf5 {[%clk 0:01:23]} 30. Kc5 {[%clk 0:00:58]}  Re6 {[%clk 0:01:23]} 31. Bd6 {[%clk 0:00:29]}  Be4 {[%clk 0:01:22]} 32. Be5 {[%clk 0:00:22]}  Bf5 {[%clk 0:01:14]} 33. Bd6 {[%clk 0:00:22]}  Rh5 {[%clk 0:00:46]} 34. Kxc6 {[%clk 0:00:20]}  Be4+ {[%clk 0:00:45]} 35. Kc7 {[%clk 0:00:20]}  Rd5 {[%clk 0:00:44]} 36. Bc5 {[%clk 0:00:20]}  Ke8 {[%clk 0:00:40]} 37. Rg5 {[%clk 0:00:18]}  Rd7+ {[%clk 0:00:39]} 38. Kb8 {[%clk 0:00:18]}  Kd8 {[%clk 0:00:32]} 39. Re5 {[%clk 0:00:10]}  Rb7+ {[%clk 0:00:32]} 40. Ka8 {[%clk 0:00:10]}  Ra6+ {[%clk 0:00:32]} 0-1


[Site "https://www.chess.com"]